[Event "Catalan Youth Championship 2024"]
[Site "Cambrils"]
[Date "2024.03.28"]
[Round "9.12"]
[White "Herman Gamazo, Isaac"]
[Black "Valle Luis, Liam"]
[Result "1/2-1/2"]
[ECO "C30"]
[WhiteElo "2096"]
[BlackElo "1852"]
[Annotator "RC"]
[PlyCount "101"]
[EventDate "2024.03.13"]
[EventType "swiss"]
[EventCountry "ESP"]
[SourceTitle "playchess.com"]
[Source "ChessBase"]
[SourceQuality "1"]
[TimeControl "5400+30"]

1. e4 {[%emt 0:00:09]} e5 {[%emt 0:00:03]} 2. Nc3 {[%emt 1:31:21]} Nc6 {[%emt 0:02:58]} 3. Bc4 {[%emt 0:00:30]} Nf6 {[%emt 0:00:32]} 4. d3 {[%emt 0:00:30]} Bc5 {[%emt 1:28:57]} 5. f4 {[%emt 0:00:00]} d6 {[%emt 0:00:30]} 6. Nf3 {[%emt 0:01:00]} Be6 {[%emt 0:00:30]} 7. f5 {[%emt 0:00:00]} Bxc4 {[%emt 0:00:30]} 8. dxc4 {[%emt 0:01:00]} Bb4 {[%emt 0:00:00]} 9. Qd3 {[%emt 0:00:00]} Bxc3+ {[%emt 0:01:00]} 10. bxc3 {[%emt 0:01:00]} Qd7 {[%emt 0:00:30]} 11. O-O {[%emt 0:00:30]} Ne7 {[%emt 0:00:30]} 12. h3 {[%emt 0:00:30]} Qc6 {[%emt 0:00:00]} 13. Re1 {[%emt 0:00:30]} Nc8 {[%emt 0:01:00]} 14. Bg5 {[%emt 0:00:30]} Nb6 {[%emt 0:00:00]} 15. Nd2 {[%emt 0:00:00]} h6 {[%emt 0:01:00]} 16. Be3 {[%emt 0:01:00]} O-O-O {[%emt 0:00:30]} 17. Bf2 {[%emt 0:00:00]} Rhg8 {[%emt 0:00:30]} 18. Bh4 {[%emt 0:01:00]} Rdf8 {[%emt 0:00:00]} 19. Qe2 {[%emt 0:00:00]} g5 {[%emt 0:00:00]} 20. fxg6 {[%emt 0:00:00]} fxg6 {[%emt 0:00:00]} 21. Rf1 {[%emt 0:00:00]} g5 {[%emt 0:00:00]} 22. Bg3 {[%emt 0:00:00]} Na4 {[%emt 0:00:00]} 23. Rf3 {[%emt 0:00:00]} Qb6+ {[%emt 0:00:00]} 24. Kh1 {[%emt 0:00:00]} Nxc3 {[%emt 0:00:00]} 25. Qd3 {[%emt 0:00:00]} Na4 {[%emt 0:00:00]} 26. Raf1 {[%emt 0:00:00]} Nc5 {[%emt 0:00:00]} 27. Qe2 {[%emt 0:00:00]} Ncd7 {[%emt 0:00:00]} 28. Ra3 {[%emt 0:00:00]} a6 {[%emt 0:05:30]} 29. Bf2 {[%emt 0:05:30]} Qc6 {[%emt 0:00:00]} 30. Rb1 {[%emt 0:00:30]} Rg7 {[%emt 0:01:00]} 31. Rab3 {[%emt 0:00:00]} b6 {[%emt 0:00:00]} 32. c5 {[%emt 0:00:00]} Nxc5 {[%emt 0:00:00]} 33. Bxc5 {[%emt 0:00:00]} Qxc5 {[%emt 0:01:30]} 34. Qxa6+ {[%emt 0:00:00]} Kd7 {[%emt 0:00:30]} 35. Rf1 {[%emt 0:02:30]} Qxc2 {[%emt 0:00:30]} 36. Nc4 {[%emt 0:00:30]} Qxe4 {[%emt 0:00:30]} 37. Nxb6+ {[%emt 0:00:30]} Ke6 {[%emt 0:00:00]} 38. Na4 {[%emt 0:00:30]} Qd5 {[%emt 0:00:00]} 39. Rd3 {[%emt 0:00:30]} Ra8 {[%emt 0:00:00]} 40. Nc5+ {[%emt 0:00:00]} Ke7 {[%emt 0:00:00]} 41. Rxd5 {[%emt 0:00:00]} Rxa6 {[%emt 0:02:30]} 42. Rxf6 {[%emt 0:00:00]} Rxa2 {[%emt 0:00:00]} 43. Re6+ {[%emt 0:00:00]} Kf7 {[%emt 0:00:00]} 44. Rxh6 {[%emt 0:02:30]} dxc5 {[%emt 0:00:00]} 45. Rd7+ {[%emt 0:00:00]} Kg8 {[%emt 0:00:11]} 46. Rd8+ {[%emt 0:00:00]} Kf7 {[%emt 0:00:36]} 47. Rc6 {[%emt 0:00:00]} Ra7 {[%emt 0:02:13]} 48. Rxc5 {[%emt 0:00:00]} c6 {[%emt 0:00:30]} 49. Rxe5 {[%emt 0:01:38]} Rc7 {[%emt 0:00:00]} 50. Rc5 {[%emt 0:00:08]} Rg6 {[%emt 0:01:00]} 51. Kh2 {[%emt 0:01:44]} 1/2-1/2

[Event "Catalan Youth Championship 2024"]
[Site "Cambrils"]
[Date "2024.03.28"]
[Round "9.13"]
[White "Clotet Mas, Dan"]
[Black "Salinas Tomas, Daniel"]
[Result "0-1"]
[ECO "B22"]
[WhiteElo "2028"]
[BlackElo "2386"]
[Annotator "RC"]
[PlyCount "72"]
[EventDate "2024.03.13"]
[EventType "swiss"]
[EventCountry "ESP"]
[SourceTitle "playchess.com"]
[Source "ChessBase"]
[SourceQuality "1"]
[TimeControl "5400+30"]

1. e4 {[%emt 0:00:03]} c6 {[%emt 0:00:05]} 2. Nf3 {[%emt 0:00:03]} d5 {[%emt 0:00:04]} 3. d3 {[%emt 0:00:03]} g6 {[%emt 0:00:05]} 4. e5 {[%emt 0:00:54]} c5 {[%emt 0:00:11]} 5. c3 {[%emt 0:00:41]} Nc6 {[%emt 0:00:05]} 6. d4 {[%emt 0:04:54]} cxd4 {[%emt 0:00:06]} 7. cxd4 {[%emt 0:00:07]} Bg4 {[%emt 0:00:07]} 8. Be3 {[%emt 0:06:55]} Bxf3 {[%emt 0:03:58]} 9. gxf3 {[%emt 0:01:24]} e6 {[%emt 0:00:58]} 10. Nc3 {[%emt 0:03:22]} a6 {[%emt 0:05:01]} 11. Qd2 {[%emt 0:04:18]} Nge7 {[%emt 0:02:46]} 12. Bd3 {[%emt 0:03:48]} Bg7 {[%emt 0:01:47]} 13. Rc1 {[%emt 0:03:37]} O-O {[%emt 0:02:15]} 14. Ne2 {[%emt 0:06:22]} f6 {[%emt 0:02:45]} 15. f4 {[%emt 0:02:49]} fxe5 {[%emt 0:01:08]} 16. fxe5 {[%emt 0:00:09]} Nf5 {[%emt 0:00:15]} 17. Bxf5 {[%emt 0:07:27]} Rxf5 {[%emt 0:00:01]} 18. h4 {[%emt 0:04:41]} Qe7 {[%emt 0:02:33]} 19. Nf4 {[%emt 0:04:52]} Raf8 {[%emt 0:00:45]} 20. h5 {[%emt 0:05:39]} g5 {[%emt 0:14:11]} 21. Nd3 {[%emt 0:00:59]} h6 {[%emt 0:00:18]} 22. Ke2 {[%emt 0:06:36]} Qf7 {[%emt 0:02:45]} 23. Rcg1 {[%emt 0:04:21]} Rf3 {[%emt 0:00:52]} 24. Rg4 {[%emt 0:06:21]} Qf5 {[%emt 0:01:42]} 25. Rhg1 {[%emt 0:00:59]} Rh3 {[%emt 0:01:07]} 26. f4 {[%emt 0:05:50]} Nxd4+ {[%emt 0:22:08]} 27. Bxd4 {[%emt 0:00:06]} Qe4+ {[%emt 0:00:28]} 28. Be3 {[%emt 0:00:07]} d4 {[%emt 0:00:38]} 29. fxg5 {[%emt 0:11:21]} Rxe3+ {[%emt 0:00:25]} 30. Kd1 {[%emt 0:00:04]} Qf3+ {[%emt 0:01:42]} 31. Kc2 {[%emt 0:01:07]} Re2 {[%emt 0:03:32]} 32. gxh6 {[%emt 0:00:04]} Rxd2+ {[%emt 0:00:08]} 33. Kxd2 {[%emt 0:00:04]} Qe3+ {[%emt 0:00:19]} 34. Kc2 {[%emt 0:00:03]} Rc8+ {[%emt 0:00:08]} 35. Kb1 {[%emt 0:00:03]} Qxd3+ {[%emt 0:00:40]} 36. Ka1 {[%emt 0:00:01]} Qd2 {[%emt 0:02:16]} 0-1

[Event "Catalan Youth Championship 2024"]
[Site "Cambrils"]
[Date "2024.03.28"]
[Round "9.14"]
[White "Anguera Staina, Maxim"]
[Black "Aleksanyan Israilyan, Nicolas"]
[Result "0-1"]
[ECO "A13"]
[WhiteElo "2020"]
[BlackElo "2045"]
[Annotator "RC"]
[PlyCount "108"]
[EventDate "2024.03.13"]
[EventType "swiss"]
[EventCountry "ESP"]
[SourceTitle "playchess.com"]
[Source "ChessBase"]
[SourceQuality "1"]
[TimeControl "5400+30"]

1. Nf3 {[%emt 1:31:00]} d5 {[%emt 0:02:35]} 2. b3 {[%emt 0:00:00]} Nf6 {[%emt 0:00:22]} 3. Bb2 {[%emt 0:00:00]} e6 {[%emt 0:00:10]} 4. e3 {[%emt 0:00:00]} Be7 5. c4 {[%emt 0:02:00]} h6 {[%emt 1:29:53]} 6. Nc3 {[%emt 0:00:00]} O-O {[%emt 0:00:00]} 7. Be2 {[%emt 0:00:00]} c5 {[%emt 0:01:00]} 8. cxd5 {[%emt 0:01:30]} Nxd5 {[%emt 0:00:30]} 9. Nxd5 {[%emt 0:00:30]} Qxd5 {[%emt 0:00:00]} 10. Bc4 {[%emt 0:00:00]} Qd8 {[%emt 0:00:00]} 11. O-O {[%emt 0:00:00]} b6 {[%emt 0:00:00]} 12. Qe2 {[%emt 0:01:30]} Bf6 {[%emt 0:02:00]} 13. d4 {[%emt 0:00:30]} cxd4 {[%emt 0:00:00]} 14. Nxd4 {[%emt 0:00:00]} Bb7 {[%emt 0:01:00]} 15. Rad1 {[%emt 0:01:00]} Qe7 {[%emt 0:00:00]} 16. e4 {[%emt 0:00:00]} Bxd4 {[%emt 0:00:00]} 17. Rxd4 {[%emt 0:00:00]} Nc6 {[%emt 0:00:00]} 18. Rd3 {[%emt 0:01:30]} Rad8 {[%emt 0:02:00]} 19. Rg3 {[%emt 0:00:00]} e5 {[%emt 0:00:30]} 20. f4 {[%emt 0:00:00]} Kh8 21. Qg4 {[%emt 0:01:30]} f6 {[%emt 0:01:00]} 22. Ba3 {[%emt 0:00:00]} Qc7 {[%emt 0:00:00]} 23. Bxf8 {[%emt 0:00:00]} Rxf8 {[%emt 0:00:00]} 24. Bd5 {[%emt 0:00:00]} Bc8 {[%emt 0:01:30]} 25. Qh5 {[%emt 0:00:00]} Nd4 26. fxe5 {[%emt 0:00:00]} Ba6 27. exf6 {[%emt 0:03:00]} Ne2+ {[%emt 0:01:30]} 28. Kh1 {[%emt 0:00:00]} Nxg3+ {[%emt 0:00:00]} 29. hxg3 {[%emt 0:00:00]} Bxf1 {[%emt 0:00:00]} 30. e5 {[%emt 0:01:30]} gxf6 {[%emt 0:01:30]} 31. exf6 {[%emt 0:00:00]} Qc1 {[%emt 0:00:30]} 32. Kh2 {[%emt 0:00:00]} Qg5 {[%emt 0:00:30]} 33. Qd1 {[%emt 0:00:00]} Qxf6 {[%emt 0:00:00]} 34. Bf3 {[%emt 0:00:00]} Bb5 {[%emt 0:01:00]} 35. Qd5 {[%emt 0:02:30]} Be8 {[%emt 0:00:00]} 36. Qb7 {[%emt 0:00:00]} Qg7 {[%emt 0:00:00]} 37. Qd5 {[%emt 0:00:00]} Rg8 {[%emt 0:00:00]} 38. Qd6 {[%emt 0:00:00]} Bg6 {[%emt 0:00:00]} 39. Qf4 {[%emt 0:00:00]} Rf8 {[%emt 0:02:30]} 40. Qd6 {[%emt 0:02:30]} Qf6 {[%emt 0:00:00]} 41. Qd2 {[%emt 0:00:30]} Kg7 {[%emt 0:00:00]} 42. a4 {[%emt 0:00:00]} Rd8 {[%emt 0:00:00]} 43. Qc1 {[%emt 0:01:00]} Rd3 {[%emt 0:02:00]} 44. Qc7+ {[%emt 0:00:00]} Qf7 {[%emt 0:00:00]} 45. Qe5+ {[%emt 0:01:00]} Kh7 {[%emt 0:00:00]} 46. b4 {[%emt 0:00:30]} Rd8 {[%emt 0:00:00]} 47. a5 {[%emt 0:00:00]} Re8 {[%emt 0:00:00]} 48. Qd6 {[%emt 0:00:00]} Qe7 {[%emt 0:00:00]} 49. Qd4 {[%emt 0:00:00]} Qe5 {[%emt 0:03:00]} 50. Qd7+ {[%emt 0:00:00]} Re7 {[%emt 0:00:00]} 51. Qd8 {[%emt 0:02:30]} bxa5 {[%emt 0:00:00]} 52. bxa5 {[%emt 0:00:00]} Be4 {[%emt 0:01:30]} 53. Bg4 {[%emt 0:00:00]} Rg7 {[%emt 0:00:30]} 54. Qc8 {[%emt 0:00:00]} h5 {[%emt 0:00:00]} 0-1

[Event "Catalan Youth Championship 2024"]
[Site "Cambrils"]
[Date "2024.03.28"]
[Round "9.15"]
[White "Sviridenko, Yaroslav"]
[Black "Montes Molina, Ivan"]
[Result "1-0"]
[ECO "C01"]
[WhiteElo "1961"]
[BlackElo "2100"]
[Annotator "RC"]
[PlyCount "117"]
[EventDate "2024.03.13"]
[EventType "swiss"]
[EventCountry "ESP"]
[SourceTitle "playchess.com"]
[Source "ChessBase"]
[SourceQuality "1"]
[TimeControl "5400+30"]

1. e4 {[%emt 0:04:44]} e6 {[%emt 0:00:03]} 2. d4 {[%emt 0:00:07]} d5 {[%emt 0:00:02]} 3. exd5 {[%emt 0:00:30]} exd5 {[%emt 0:00:06]} 4. Nf3 {[%emt 0:00:06]} Bd6 {[%emt 0:00:05]} 5. Bd3 {[%emt 0:00:29]} Ne7 {[%emt 0:00:07]} 6. O-O {[%emt 0:00:14]} Bg4 {[%emt 0:00:30]} 7. Nbd2 {[%emt 0:00:27]} Nbc6 {[%emt 0:00:07]} 8. c3 {[%emt 0:00:19]} Qd7 {[%emt 0:00:05]} 9. Re1 {[%emt 0:00:11]} O-O-O {[%emt 0:00:11]} 10. b4 {[%emt 0:00:32]} Ng6 {[%emt 0:00:07]} 11. Qa4 {[%emt 0:00:45]} Kb8 {[%emt 0:00:09]} 12. b5 {[%emt 0:00:05]} Nce7 {[%emt 0:00:05]} 13. Ne5 {[%emt 0:00:24]} Nxe5 {[%emt 0:06:36]} 14. dxe5 {[%emt 0:00:11]} Bc5 {[%emt 0:00:17]} 15. Nb3 {[%emt 0:02:46]} Bb6 {[%emt 0:01:00]} 16. Be3 {[%emt 0:03:43]} Bxe3 {[%emt 0:12:22]} 17. Rxe3 {[%emt 0:00:11]} h5 {[%emt 0:01:03]} 18. Nc5 {[%emt 0:13:52]} Qc8 {[%emt 0:05:59]} 19. Qb3 {[%emt 0:08:33]} Be6 {[%emt 0:06:50]} 20. Ree1 {[%emt 0:02:20]} Rh6 {[%emt 0:05:16]} 21. a4 {[%emt 0:02:16]} d4 {[%emt 0:02:10]} 22. c4 {[%emt 0:01:08]} Bf5 {[%emt 0:00:53]} 23. a5 {[%emt 0:01:33]} Bxd3 {[%emt 0:00:16]} 24. Nxd3 {[%emt 0:05:34]} Rg6 {[%emt 0:01:23]} 25. Nf4 {[%emt 0:03:35]} Rg4 {[%emt 0:02:40]} 26. Qf3 {[%emt 0:01:26]} Nf5 {[%emt 0:06:11]} 27. h3 {[%emt 0:05:23]} Rg5 {[%emt 0:03:18]} 28. a6 {[%emt 0:02:43]} d3 {[%emt 0:00:31]} 29. Red1 {[%emt 0:09:48]} Rd4 {[%emt 0:00:31]} 30. Rxd3 {[%emt 0:04:01]} Nh4 {[%emt 0:01:02]} 31. Qe3 {[%emt 0:00:26]} Rxd3 {[%emt 0:03:49]} 32. Qxd3 {[%emt 0:00:24]} Rxe5 {[%emt 0:00:07]} 33. axb7 {[%emt 0:00:52]} Qe8 {[%emt 0:00:42]} 34. Qd4 {[%emt 0:05:56]} Re1+ {[%emt 0:01:21]} 35. Rxe1 {[%emt 0:00:13]} Qxe1+ {[%emt 0:00:03]} 36. Kh2 {[%emt 0:00:12]} g5 {[%emt 0:00:48]} 37. Qd8+ {[%emt 0:03:32]} Kxb7 {[%emt 0:00:11]} 38. Nd3 {[%emt 0:01:42]} Qe2 {[%emt 0:03:56]} 39. Qd5+ {[%emt 0:02:21]} Kc8 {[%emt 0:01:26]} 40. Ne5 {[%emt 0:02:38]} Nf3+ {[%emt 0:00:52]} 41. Nxf3 {[%emt 0:00:16]} Qxf2 {[%emt 0:00:20]} 42. Qxg5 {[%emt 0:00:41]} Qe2 {[%emt 0:00:09]} 43. Qd5 {[%emt 0:00:53]} Qe3 {[%emt 0:00:38]} 44. Qxf7 {[%emt 0:00:32]} Qh6 {[%emt 0:01:02]} 45. Qe8+ {[%emt 0:00:24]} Kb7 {[%emt 0:00:06]} 46. Qe5 {[%emt 0:00:26]} a5 {[%emt 0:00:39]} 47. Nd4 {[%emt 0:00:31]} a4 {[%emt 0:00:42]} 48. Qd5+ {[%emt 0:00:49]} Kc8 {[%emt 0:00:09]} 49. Ne6 {[%emt 0:00:51]} Qf6 {[%emt 0:00:59]} 50. Qa8+ {[%emt 0:01:16]} Kd7 {[%emt 0:00:04]} 51. Nc5+ {[%emt 0:00:18]} Ke7 {[%emt 0:00:14]} 52. Qe4+ {[%emt 0:00:13]} Kd8 {[%emt 0:00:47]} 53. Qd5+ {[%emt 0:01:20]} Ke8 {[%emt 0:00:18]} 54. Qxh5+ {[%emt 0:00:33]} Kd8 {[%emt 0:00:17]} 55. Qd5+ {[%emt 0:01:03]} Ke8 {[%emt 0:00:11]} 56. Qg8+ {[%emt 0:01:08]} Ke7 {[%emt 0:00:16]} 57. Nxa4 {[%emt 0:02:23]} Qf4+ {[%emt 0:00:22]} 58. Qg3 {[%emt 0:00:05]} Qxc4 {[%emt 0:00:24]} 59. Nc3 {[%emt 0:00:07]} 1-0

[Event "Catalan Youth Championship 2024"]
[Site "Cambrils"]
[Date "2024.03.28"]
[Round "9.16"]
[White "Pinyol i Llora, Julia"]
[Black "Benseny Martinez, Guerau"]
[Result "0-1"]
[ECO "E63"]
[WhiteElo "1950"]
[BlackElo "1986"]
[Annotator "RC"]
[PlyCount "84"]
[EventDate "2024.03.13"]
[EventType "swiss"]
[EventCountry "ESP"]
[SourceTitle "playchess.com"]
[Source "ChessBase"]
[SourceQuality "1"]
[TimeControl "5400+30"]

1. d4 {[%emt 0:02:22]} Nf6 {[%emt 0:00:15]} 2. c4 {[%emt 0:00:07]} g6 {[%emt 0:00:14]} 3. Nc3 {[%emt 0:00:07]} Bg7 {[%emt 1:31:31]} 4. g3 {[%emt 0:00:17]} O-O {[%emt 0:00:00]} 5. Bg2 {[%emt 0:00:04]} d6 {[%emt 0:00:00]} 6. Nf3 {[%emt 0:00:05]} Nc6 {[%emt 0:00:00]} 7. O-O {[%emt 0:00:12]} a6 {[%emt 0:02:00]} 8. Bf4 {[%emt 0:00:30]} Rb8 {[%emt 0:00:00]} 9. Rc1 {[%emt 1:31:16]} Nh5 {[%emt 0:00:00]} 10. Bg5 {[%emt 0:00:00]} h6 {[%emt 0:00:00]} 11. Be3 {[%emt 0:01:00]} Na5 {[%emt 0:02:00]} 12. Qa4 {[%emt 0:00:30]} c6 {[%emt 0:00:30]} 13. c5 {[%emt 0:00:00]} b5 {[%emt 0:00:00]} 14. cxb6 {[%emt 0:00:00]} Qxb6 {[%emt 0:01:00]} 15. b3 {[%emt 0:01:30]} Nf6 {[%emt 0:00:30]} 16. Bd2 {[%emt 0:00:00]} Bd7 {[%emt 0:00:30]} 17. Qa3 {[%emt 0:00:00]} Nb7 {[%emt 0:00:00]} 18. e4 {[%emt 0:01:30]} c5 {[%emt 0:01:00]} 19. e5 {[%emt 0:00:30]} dxe5 {[%emt 0:00:30]} 20. dxe5 {[%emt 0:00:00]} Ne8 21. Ne4 {[%emt 0:01:00]} Nc7 {[%emt 0:01:00]} 22. Nxc5 {[%emt 0:00:30]} Bc6 {[%emt 0:00:30]} 23. Nd3 {[%emt 0:00:30]} Nb5 {[%emt 0:00:30]} 24. Qb2 {[%emt 0:00:30]} Bxf3 {[%emt 0:00:30]} 25. Bxf3 {[%emt 0:00:00]} Nd4 {[%emt 0:00:30]} 26. Bg4 {[%emt 0:01:00]} h5 {[%emt 0:00:30]} 27. Be3 {[%emt 0:00:00]} hxg4 {[%emt 0:00:00]} 28. Bxd4 {[%emt 0:01:00]} Qb5 {[%emt 0:01:00]} 29. Nf4 {[%emt 0:00:30]} Nd8 {[%emt 0:00:00]} 30. e6 {[%emt 0:00:30]} Bh6 {[%emt 0:00:27]} 31. exf7+ {[%emt 0:00:00]} Rxf7 {[%emt 0:01:03]} 32. Rc5 {[%emt 0:01:00]} Qd7 {[%emt 0:00:30]} 33. Be5 {[%emt 0:00:30]} Rb6 {[%emt 0:00:30]} 34. Rfc1 {[%emt 0:00:30]} Nc6 {[%emt 0:00:30]} 35. Rd5 {[%emt 0:00:00]} Qe8 {[%emt 0:00:30]} 36. Rcd1 {[%emt 0:00:00]} Rb5 {[%emt 0:00:00]} 37. Rxb5 {[%emt 0:00:00]} axb5 {[%emt 0:01:00]} 38. Nxg6 {[%emt 0:02:00]} Rf5 {[%emt 0:00:00]} 39. Qc2 {[%emt 0:00:30]} Qxg6 {[%emt 0:00:08]} 40. Bb2 {[%emt 0:00:30]} Rf6 {[%emt 0:00:49]} 41. Qe2 {[%emt 0:00:00]} Rf5 {[%emt 0:00:30]} 42. Qc2 {[%emt 0:01:00]} Bg7 {[%emt 0:00:29]} 0-1

[Event "Catalan Youth Championship 2024"]
[Site "Cambrils"]
[Date "2024.03.28"]
[Round "9.17"]
[White "Funes Ostos, Aitor"]
[Black "Sanchez Aguilar, Arnau"]
[Result "1-0"]
[ECO "A17"]
[WhiteElo "2125"]
[BlackElo "2168"]
[Annotator "RC"]
[PlyCount "59"]
[EventDate "2024.03.13"]
[EventType "swiss"]
[EventCountry "ESP"]
[SourceTitle "playchess.com"]
[Source "ChessBase"]
[SourceQuality "1"]
[TimeControl "5400+30"]

1. c4 {[%emt 0:00:02]} e6 {[%emt 0:00:36]} 2. Nc3 {[%emt 0:00:06]} d5 {[%emt 0:00:23]} 3. e3 {[%emt 0:00:04]} Nf6 {[%emt 0:00:20]} 4. Nf3 {[%emt 0:00:04]} b6 {[%emt 0:00:32]} 5. b3 {[%emt 0:00:07]} Bb7 {[%emt 0:00:10]} 6. Bb2 {[%emt 0:00:04]} Nbd7 {[%emt 0:01:31]} 7. cxd5 {[%emt 0:00:23]} exd5 {[%emt 0:00:43]} 8. Rc1 {[%emt 0:00:03]} a6 {[%emt 0:00:49]} 9. Ne2 {[%emt 1:34:07]} Bd6 {[%emt 0:03:00]} 10. Ned4 {[%emt 0:00:00]} c5 {[%emt 0:02:35]} 11. Nf5 {[%emt 0:00:00]} Bf8 {[%emt 0:00:05]} 12. Be2 {[%emt 0:00:00]} g6 {[%emt 0:01:05]} 13. Ng3 {[%emt 0:00:00]} h5 {[%emt 0:00:40]} 14. h4 {[%emt 0:00:00]} Bd6 {[%emt 1:25:01]} 15. O-O {[%emt 0:00:00]} Qc7 {[%emt 0:00:00]} 16. Qe1 {[%emt 0:00:00]} O-O {[%emt 0:00:00]} 17. Ng5 {[%emt 0:00:00]} Rae8 {[%emt 0:00:00]} 18. f4 {[%emt 0:00:00]} d4 {[%emt 0:00:00]} 19. Bxd4 {[%emt 0:00:00]} Nd5 {[%emt 0:02:30]} 20. Nxh5 {[%emt 0:00:00]} f6 {[%emt 0:00:30]} 21. Qg3 {[%emt 0:00:00]} fxg5 {[%emt 0:00:00]} 22. Qxg5 {[%emt 0:00:00]} Re6 {[%emt 0:00:00]} 23. f5 {[%emt 0:00:00]} Bh2+ {[%emt 0:00:00]} 24. Kh1 {[%emt 0:00:00]} Rc6 {[%emt 0:00:00]} 25. Bg7 {[%emt 0:00:00]} Be5 {[%emt 0:00:00]} 26. Bxf8 {[%emt 0:00:00]} Nxf8 {[%emt 0:00:00]} 27. Bc4 {[%emt 0:00:00]} Rd6 {[%emt 0:00:00]} 28. fxg6 {[%emt 0:09:30]} Rxg6 {[%emt 0:00:00]} 29. Rxf8+ {[%emt 0:00:00]} Kh7 {[%emt 0:00:00]} 30. Bd3 {[%emt 0:00:00]} 1-0

[Event "Catalan Youth Championship 2024"]
[Site "Cambrils"]
[Date "2024.03.28"]
[Round "9.18"]
[White "Valle Luis, Leo"]
[Black "Creixans Comerma, Pol"]
[Result "1/2-1/2"]
[ECO "B08"]
[WhiteElo "2230"]
[BlackElo "1981"]
[Annotator "RC"]
[PlyCount "101"]
[EventDate "2024.03.13"]
[EventType "swiss"]
[EventCountry "ESP"]
[SourceTitle "playchess.com"]
[Source "ChessBase"]
[SourceQuality "1"]
[TimeControl "5400+30"]

1. e4 {[%emt 1:31:00]} Nc6 {[%emt 1:31:00]} 2. Nf3 {[%emt 0:00:30]} d6 {[%emt 0:00:30]} 3. d4 {[%emt 0:00:30]} Nf6 {[%emt 0:00:30]} 4. Nc3 {[%emt 0:00:30]} g6 {[%emt 0:00:30]} 5. Bf4 {[%emt 0:00:30]} Bg7 {[%emt 0:00:30]} 6. Qd2 {[%emt 0:00:30]} a6 {[%emt 0:00:30]} 7. a4 {[%emt 0:00:30]} O-O {[%emt 0:00:30]} 8. Be2 {[%emt 0:00:30]} Nxd4 {[%emt 0:00:30]} 9. Nxd4 {[%emt 0:00:30]} e5 {[%emt 0:00:30]} 10. Be3 {[%emt 0:00:30]} exd4 {[%emt 0:00:30]} 11. Bxd4 {[%emt 0:00:30]} Re8 {[%emt 0:00:30]} 12. f3 {[%emt 0:00:30]} Be6 {[%emt 0:00:30]} 13. Rd1 {[%emt 0:00:30]} Qe7 {[%emt 0:00:30]} 14. O-O {[%emt 0:00:30]} Rad8 {[%emt 0:00:30]} 15. f4 {[%emt 0:00:30]} c5 {[%emt 0:00:30]} 16. Bf2 {[%emt 0:00:30]} Ng4 {[%emt 0:00:30]} 17. Bxg4 {[%emt 0:00:30]} Bxg4 {[%emt 0:00:30]} 18. Rde1 {[%emt 0:00:30]} Be6 {[%emt 0:00:30]} 19. b3 {[%emt 0:00:30]} Qf6 {[%emt 0:00:30]} 20. Nd5 {[%emt 0:00:30]} Bxd5 {[%emt 0:00:30]} 21. Qxd5 {[%emt 0:00:30]} Qc3 {[%emt 0:00:30]} 22. Re2 {[%emt 0:00:30]} b5 {[%emt 0:00:30]} 23. Qc6 {[%emt 0:00:30]} bxa4 {[%emt 0:00:30]} 24. Qxa4 {[%emt 0:00:30]} f5 {[%emt 0:00:30]} 25. Rd1 {[%emt 0:00:30]} Qb4 {[%emt 0:00:30]} 26. Qxa6 {[%emt 0:00:30]} Rxe4 {[%emt 0:00:30]} 27. g3 {[%emt 0:00:30]} Rde8 {[%emt 0:00:30]} 28. Rxe4 {[%emt 0:00:30]} Qxe4 {[%emt 0:00:30]} 29. Re1 {[%emt 0:00:30]} Qa8 {[%emt 0:00:30]} 30. Rxe8+ {[%emt 0:00:30]} Qxe8 31. Qxd6 {[%emt 0:00:30]} Bd4 {[%emt 0:01:00]} 32. Qd5+ {[%emt 0:00:30]} Kf8 {[%emt 0:00:30]} 33. Kf1 {[%emt 0:00:30]} Qb5+ {[%emt 0:00:30]} 34. Kg1 {[%emt 0:00:30]} Qe2 {[%emt 0:00:30]} 35. Bxd4 {[%emt 0:00:30]} Qd1+ {[%emt 0:00:30]} 36. Kg2 {[%emt 0:00:30]} Qd2+ {[%emt 0:00:30]} 37. Kh3 {[%emt 0:00:30]} cxd4 {[%emt 0:00:30]} 38. Qg2 {[%emt 0:00:30]} Qd1 {[%emt 0:00:30]} 39. Qf2 {[%emt 0:00:30]} Kg8 {[%emt 0:00:30]} 40. b4 {[%emt 0:00:30]} d3 {[%emt 0:00:30]} 41. cxd3 {[%emt 0:00:30]} Qxd3 42. Qe1 {[%emt 0:00:30]} Kf7 {[%emt 0:01:00]} 43. Qf2 {[%emt 0:00:30]} Kg8 {[%emt 0:00:30]} 44. Qb2 {[%emt 0:00:30]} Qf1+ {[%emt 0:00:30]} 45. Kh4 {[%emt 0:00:30]} Qd1 {[%emt 0:00:30]} 46. Kg5 {[%emt 0:00:30]} h6+ {[%emt 0:00:30]} 47. Kxg6 {[%emt 0:00:30]} Qg4+ {[%emt 0:00:30]} 48. Kxh6 {[%emt 0:00:30]} Qh3+ {[%emt 0:00:30]} 49. Kg6 {[%emt 0:00:30]} Qg4+ {[%emt 0:00:30]} 50. Kh6 {[%emt 0:00:30]} Qh3+ {[%emt 0:00:30]} 51. Kg5 {[%emt 0:00:30]} 1/2-1/2

[Event "Catalan Youth Championship 2024"]
[Site "Cambrils"]
[Date "2024.03.28"]
[Round "9.19"]
[White "Ano Pla, Gerard"]
[Black "Catalan Monteagudo, Elm"]
[Result "1-0"]
[ECO "A45"]
[WhiteElo "2230"]
[BlackElo "1954"]
[Annotator "RC"]
[PlyCount "81"]
[EventDate "2024.03.13"]
[EventType "swiss"]
[EventCountry "ESP"]
[SourceTitle "playchess.com"]
[Source "ChessBase"]
[SourceQuality "1"]
[TimeControl "5400+30"]

1. d4 {[%emt 0:00:02]} Nf6 {[%emt 0:04:00]} 2. Bg5 {[%emt 0:00:04]} c5 {[%emt 0:00:23]} 3. d5 {[%emt 1:31:54]} Qb6 {[%emt 0:00:45]} 4. Bc1 {[%emt 0:00:00]} g6 {[%emt 0:00:39]} 5. Nc3 {[%emt 0:00:00]} Bg7 {[%emt 0:00:21]} 6. e4 {[%emt 0:00:00]} d6 {[%emt 1:27:22]} 7. Nf3 {[%emt 0:00:00]} O-O {[%emt 0:00:00]} 8. Be2 {[%emt 0:00:00]} Nbd7 {[%emt 0:00:00]} 9. h3 {[%emt 0:00:00]} a6 {[%emt 0:00:00]} 10. O-O {[%emt 0:03:30]} Ne8 {[%emt 0:02:00]} 11. a4 {[%emt 0:00:00]} Qd8 {[%emt 0:00:30]} 12. Bf4 {[%emt 0:00:00]} b6 {[%emt 0:00:00]} 13. Qd2 {[%emt 0:00:00]} Bb7 {[%emt 0:00:00]} 14. Rfe1 {[%emt 0:02:00]} Ne5 {[%emt 0:00:00]} 15. Nxe5 {[%emt 0:00:00]} dxe5 {[%emt 0:00:00]} 16. Be3 {[%emt 0:01:00]} Rc8 {[%emt 0:02:30]} 17. b3 {[%emt 0:00:00]} Nd6 {[%emt 0:00:00]} 18. f3 {[%emt 0:01:00]} Qc7 {[%emt 0:01:00]} 19. g4 {[%emt 0:00:30]} Rfd8 {[%emt 0:00:30]} 20. Bc4 {[%emt 0:00:00]} Qd7 {[%emt 0:00:00]} 21. Qe2 {[%emt 0:00:00]} Ra8 {[%emt 0:00:00]} 22. Bd3 {[%emt 0:01:30]} Rdc8 {[%emt 0:00:00]} 23. Nd1 {[%emt 0:00:00]} Kh8 {[%emt 0:00:00]} 24. a5 {[%emt 0:00:00]} b5 {[%emt 0:00:00]} 25. c4 {[%emt 0:00:00]} f5 {[%emt 0:00:00]} 26. Nc3 {[%emt 0:00:00]} e6 {[%emt 0:03:30]} 27. cxb5 {[%emt 0:00:00]} axb5 {[%emt 0:00:00]} 28. Bxb5 {[%emt 0:00:00]} Nxb5 {[%emt 0:00:00]} 29. Qxb5 {[%emt 0:00:00]} Qxb5 {[%emt 0:00:00]} 30. Nxb5 {[%emt 0:04:00]} exd5 {[%emt 0:00:00]} 31. Nd6 {[%emt 0:00:00]} Rc7 {[%emt 0:00:00]} 32. Nxb7 {[%emt 0:00:00]} Rxb7 {[%emt 0:00:00]} 33. Bxc5 {[%emt 0:00:00]} Rxb3 {[%emt 0:03:30]} 34. a6 {[%emt 0:00:00]} Rb5 {[%emt 0:00:00]} 35. Bf2 {[%emt 0:00:00]} fxe4 {[%emt 0:00:00]} 36. fxe4 {[%emt 0:00:00]} d4 {[%emt 0:00:00]} 37. Reb1 {[%emt 0:03:30]} Rxb1+ {[%emt 0:00:00]} 38. Rxb1 {[%emt 0:00:00]} Bh6 {[%emt 0:00:00]} 39. Ra1 {[%emt 0:00:00]} Ra7 {[%emt 0:00:00]} 40. Kf1 {[%emt 0:00:00]} d3 {[%emt 0:00:00]} 41. Bxa7 {[%emt 0:00:00]} 1-0